bitfinex/quotes_SOLUSD_20241214
["timestamp","ask_amount","ask_price","bid_price","bid_amount"]
[1734184809862,20.0,220.72,220.61,23.902374]
[1734184810542,0.84959773,220.71,220.61,23.902374]
[1734184811077,0.84959773,220.71,220.61,23.776884]
[1734184811480,20.0,220.72,220.61,23.776884]
[1734184811667,0.84960492,220.71,220.61,23.776884]
[1734184812377,20.0,220.72,220.61,23.776884]
[1734184813274,20.0,220.72,220.65,8.67977002]
[1734184813453,7.7965,220.75,220.67,32.45665402]
[1734184813781,7.7965,220.81,220.71,32.45665402]
[1734184814079,7.7965,220.81,220.73,23.776884]
[1734184814569,0.84919246,220.8,220.71,23.776884]
[1734184814772,0.84919246,220.8,220.7,0.12549]
[1734184815159,7.7965,220.81,220.71,23.776884]
[1734184815665,7.7965,220.81,220.71,37.3170519]
[1734184815873,7.7965,220.81,220.72,14.11526527]
[1734184816081,8.97418012,220.86,220.74,13.6656579]
[1734184816269,8.1249,220.86,220.77,23.776884]
[1734184816467,8.1249,220.86,220.78,0.44909908]
[1734184816971,8.1249,220.86,220.79,13.5401679]
[1734184817177,8.1249,220.86,220.8,24.22581515]
[1734184817561,6.5656,220.86,220.8,24.22581515]
[1734184818074,1.5593,220.91,220.8,24.22581515]
[1734184818322,1.5593,220.91,220.8,37.76598305]
[1734184818777,1.5593,220.91,220.8,24.22581515]
[1734184819089,0.84887779,220.9,220.77,23.776884]
[1734184819261,0.84887779,220.9,220.78,0.12549]
[1734184819578,20.0,220.89,220.79,0.4489918]
[1734184820776,20.0,220.89,220.79,24.2258758]
[1734184820977,20.0,220.89,220.79,13.9891597]
[1734184821153,20.0,220.89,220.8,23.776884]
[1734184821356,1.5593,220.91,220.81,0.44891981]
[1734184821580,1.5593,220.91,220.82,23.776884]
[1734184821870,1.5593,220.91,220.83,0.44872376]
[1734184823788,6.5656,220.92,220.83,0.44872376]
[1734184823969,1.5593,220.96,220.85,23.776884]
[1734184824282,1.5593,220.96,220.86,0.12549]
[1734184824458,1.5593,220.96,220.87,0.44835721]
[1734184824753,1.5593,220.96,220.87,24.22524121]
[1734184824957,1.5593,220.96,220.87,37.76540911]
[1734184825869,1.5593,220.96,220.87,24.22524121]
[1734184826381,2.40794919,220.96,220.84,23.776884]
[1734184826572,20.0,220.94,220.85,0.44853334]
[1734184827164,20.0,220.94,220.82,0.44864895]
[1734184827564,20.0,220.94,220.83,23.776884]
[1734184827779,20.0,220.94,220.84,0.44862096]
[1734184828874,1.5593,220.96,220.85,23.902374]
[1734184829073,1.5593,220.96,220.86,24.22525445]
[1734184829280,1.5593,220.96,220.87,24.027864]
[1734184829468,1.5593,220.96,220.88,24.225141]
[1734184830687,1.5593,220.96,220.88,23.776884]
[1734184830868,1.5593,220.96,220.86,24.22526632]
[1734184831770,1.5593,220.96,220.87,13.7911479]
[1734184831966,6.5656,220.97,220.89,24.027864]
[1734184832287,2.40774839,221.01,220.9,24.22492818]
[1734184833473,1.5593,221.01,220.9,37.76509608]
[1734184833697,20.0,220.99,220.9,37.76509608]
[1734184834277,1.5593,221.01,220.9,37.76509608]
[1734184834474,1.5593,221.01,220.91,37.5680319]
[1734184834675,1.5593,221.01,220.92,24.22478251]
[1734184835386,2.40770482,221.01,220.92,24.22478251]
[1734184835589,2.40770482,221.01,220.92,0.44789851]
[1734184835790,2.40770482,221.01,220.91,0.44807684]
[1734184835976,1.5593,221.01,220.91,0.44807684]
[1734184836880,1.5593,221.01,220.92,37.5680319]
[1734184837087,1.5593,221.01,220.93,24.22470366]
[1734184837285,6.5656,221.02,220.93,24.22470366]
[1734184838579,20.0,221.03,220.95,23.776884]
[1734184839480,20.0,221.03,220.94,0.4477769]
[1734184840896,0.84834264,221.02,220.91,23.776884]
[1734184841198,0.84834264,221.02,220.91,32.87312396]
[1734184841702,20.0,221.03,220.91,32.87312396]
[1734184842087,20.0,221.03,220.93,32.42512267]
[1734184842304,20.0,221.03,220.94,0.44777861]
[1734184842474,20.0,221.03,220.95,0.12549]
[1734184842679,11.5301,221.06,220.96,0.44771788]
[1734184843201,10.0,221.06,220.97,32.55061267]
[1734184843378,10.0,221.06,220.98,24.22433097]
[1734184843989,10.0,221.06,220.98,32.87256964]
[1734184844192,10.0,221.06,221.0,23.776884]
[1734184844399,10.0,221.06,221.01,0.44732227]
[1734184846108,10.0,221.06,221.02,23.776884]
[1734184846304,10.0,221.06,221.03,0.44721316]
[1734184846604,10.0,221.06,221.03,9.09545183]
[1734184846813,10.0,221.06,221.04,23.776884]
[1734184848610,10.0,221.06,221.03,24.22409716]
[1734184848993,10.0,221.06,221.03,32.87233583]
[1734184849299,10.0,221.06,221.03,24.22409716]
[1734184850610,10.0,221.06,221.0,8.64823867]
[1734184850827,10.0,221.06,221.01,0.44731799]
[1734184852104,10.0,221.06,221.01,32.87244066]
[1734184853110,10.0,221.06,221.01,24.22420199]
[1734184853303,10.0,221.06,221.02,0.12549]
[1734184853501,10.0,221.06,221.03,0.44723994]
[1734184854198,10.0,221.06,221.03,32.87236261]
[1734184854813,10.0,221.06,221.03,24.22412394]
[1734184855005,10.0,221.06,221.02,23.776884]
[1734184855208,10.0,221.06,221.01,23.776884]
[1734184855519,10.0,221.06,221.02,0.44729546]
[1734184855716,10.0,221.06,221.02,9.09553413]
[1734184855916,10.0,221.06,221.03,23.776884]
[1734184856113,10.0,221.06,221.04,0.44712382]
[1734184856918,10.0,221.06,221.05,32.67610267]
[1734184857130,10.0,221.06,221.05,32.55061267]
[1734184857296,10.0,221.06,221.05,23.776884]
[1734184857503,10.0,221.06,221.05,32.67610267]
[1734184857699,10.0,221.06,221.05,24.22374613]
[1734184857995,10.0,221.06,221.05,0.44686213]
[1734184858296,10.0,221.06,221.04,23.776884]
[1734184858496,10.0,221.06,221.03,23.776884]
[1734184859222,10.0,221.06,221.02,32.87230982]
[1734184860335,10.0,221.06,221.05,8.64823867]
[1734184860506,10.0,221.06,221.05,24.34928298]
[1734184860699,10.0,221.06,221.05,33.12301165]
[1734184862032,10.0,221.06,221.05,33.24850165]
[1734184862326,10.0,221.06,221.05,51.83850165]
[1734184863406,10.0,221.06,221.05,56.67743668]
[1734184864335,10.0,221.06,221.05,38.08743668]
[1734184869426,10.0,221.06,221.05,13.93408268]
[1734184870007,10.0,221.06,221.05,14.18506268]
[1734184870627,10.0,221.06,221.05,38.08743668]
[1734184871727,10.0,221.06,221.05,37.96194668]
[1734184872710,10.0,221.06,221.05,38.08743668]
[1734184872947,10.0,221.06,221.05,37.96194668]
[1734184873521,10.0,221.06,221.05,38.08743668]
[1734184874016,10.0,221.06,221.05,51.67743668]
[1734184874218,10.0,221.06,221.05,38.08743668]
[1734184874420,10.0,221.06,221.05,51.67743668]
[1734184875137,8.52781918,221.06,221.05,51.67743668]
[1734184876050,2.08781918,221.06,221.05,56.67743668]
[1734184876333,0.5226071,221.13,221.11,24.027864]
[1734184876535,0.5226071,221.13,221.12,37.96119637]
[1734184878128,0.5226071,221.13,221.12,39.47049637]
[1734184878332,0.5226071,221.13,221.12,39.59598637]
[1734184878635,0.5226071,221.13,221.12,53.18598637]
[1734184881722,1.6408,221.29,221.18,0.12549]
[1734184881921,1.6408,221.29,221.21,13.4871737]
[1734184882118,1.6408,221.29,221.22,0.44555739]
[1734184882318,1.6408,221.29,221.23,13.7381537]
[1734184882514,6.4186,221.3,221.24,13.93263858]
[1734184882720,6.4186,221.3,221.25,13.4871737]
[1734184883029,1.6408,221.34,221.26,0.44534413]
[1734184883225,1.6408,221.34,221.27,0.12549]
[1734184883429,1.6408,221.34,221.28,13.93233448]
[1734184883624,6.9412071,221.35,221.29,13.4871737]
[1734184883823,6.9412071,221.35,221.3,0.44502082]
[1734184884455,0.5226071,221.35,221.3,0.44502082]
[1734184886748,0.5226071,221.35,221.28,0.44521248]
[1734184887815,0.5226071,221.35,221.28,13.93238618]
[1734184888242,0.5226071,221.35,221.29,13.4871737]
[1734184888445,0.5226071,221.35,221.3,0.44502712]
[1734184889642,0.5226071,221.35,221.3,13.93220082]
[1734184890372,0.5226071,221.35,221.33,13.4871737]
[1734184890530,0.5226071,221.35,221.34,0.44474604]
[1734184890727,0.5226071,221.35,221.34,14.05740974]
[1734184894362,0.5226071,221.35,221.34,37.95978374]
[1734184897072,0.5226071,221.35,221.34,24.47261004]
[1734184897267,0.5226071,221.35,221.34,0.44474604]
[1734184897475,0.5226071,221.35,221.3,13.4871737]
[1734184897678,0.5226071,221.35,221.31,0.44491063]
[1734184897973,0.5226071,221.35,221.32,13.4871737]
[1734184898174,0.5226071,221.35,221.33,0.44474443]
[1734184898678,0.5226071,221.35,221.33,13.93191813]
[1734184899040,0.5226071,221.35,221.34,0.12549]
[1734184899675,0.5226071,221.35,221.33,0.44474443]
[1734184900176,0.5226071,221.35,221.32,0.44485411]
[1734184900351,0.5226071,221.35,221.32,13.93202781]
[1734184903177,0.5226071,221.35,221.32,0.44485411]
[1734184905459,0.5226071,221.35,221.33,37.5150377]
[1734184905663,0.5226071,221.35,221.34,14.05742482]
[1734184906158,0.5226071,221.35,221.34,37.95979882]
[1734184907682,0.5226071,221.35,221.34,38.08528882]
[1734184907895,0.5226071,221.35,221.34,46.23748882]
[1734184908094,0.5226071,221.35,221.34,39.48679882]
[1734184910290,0.5226071,221.35,221.34,58.20228882]
[1734184910462,0.5226071,221.35,221.34,63.20228882]
[1734184912975,8.0497,221.53,221.4,0.12549]
[1734184913290,8.0497,221.53,221.41,13.4871737]
[1734184913491,8.0497,221.53,221.42,0.44413806]
[1734184914384,8.0497,221.53,221.42,13.93131176]
[1734184916922,8.0497,221.53,221.42,0.44413806]
[1734184917213,8.0497,221.53,221.42,13.93131176]
[1734184918282,8.0497,221.53,221.43,13.7381537]
[1734184918480,8.0497,221.53,221.44,0.44396485]
[1734184919210,0.84641165,221.52,221.42,20.0]
[1734184919378,8.0497,221.53,221.42,0.56965028]
[1734184920806,0.84650483,221.52,221.42,0.56965028]
[1734184921527,0.84650483,221.52,221.42,0.44416028]
[1734184922740,8.0497,221.53,221.43,8.735558]
[1734184923403,8.0497,221.53,221.44,0.44404842]
[1734184925300,8.0497,221.53,221.45,0.12549]
[1734184925511,8.0497,221.53,221.46,0.44384726]
[1734184926939,8.0497,221.53,221.39,0.44390776]
[1734184927231,8.0497,221.53,221.41,8.610068]
[1734184927443,8.0497,221.53,221.43,0.12549]
[1734184928006,8.0497,221.53,221.42,0.44407704]
[1734184928401,8.0497,221.53,221.42,0.12549]
[1734184928620,8.0497,221.53,221.43,0.44413746]
[1734184931826,8.0497,221.53,221.44,0.12549]
[1734184932134,3.21986202,221.57,221.47,8.861048]
[1734184932135,2.37349657,221.57,221.47,8.861048]
[1734184932302,0.5226071,221.57,221.49,0.12549]
[1734184932501,0.5226071,221.57,221.5,0.44356348]
[1734184935143,0.5226071,221.57,221.51,0.12549]
[1734184935348,0.5226071,221.57,221.53,0.12549]
[1734184935520,0.5226071,221.57,221.54,0.44323132]
[1734184936611,0.5226071,221.57,221.55,0.12549]
[1734184936840,0.5226071,221.57,221.56,0.44309294]
[1734184937045,0.5226071,221.57,221.56,0.56858294]
[1734184937551,0.5226071,221.57,221.56,0.69407294]
[1734184937731,0.5226071,221.57,221.56,0.12549]
[1734184937909,0.5226071,221.57,221.56,0.56858374]
[1734184938743,0.5226071,221.57,221.56,0.44309374]
[1734184938910,0.5226071,221.57,221.5,0.12549]
[1734184939120,0.5226071,221.57,221.5,0.56894921]
[1734184939337,0.5226071,221.57,221.51,0.12549]
[1734184939533,0.5226071,221.57,221.52,0.44322916]
[1734184940042,0.5226071,221.57,221.53,0.12549]
[1734184940253,0.5226071,221.57,221.56,8.735558]
[1734184940540,0.5226071,221.57,221.56,20.69374777]
[1734184940742,0.5226071,221.57,221.56,29.30381577]
[1734184941250,0.5226071,221.57,221.56,20.69374777]
[1734184941410,0.5226071,221.57,221.56,34.12440125]
[1734184941734,0.5226071,221.57,221.56,57.90128525]
[1734184942111,0.5226071,221.57,221.56,33.99891125]
[1734184943646,0.5226071,221.57,221.56,34.12440125]
[1734184944036,0.5226071,221.57,221.56,57.90128525]
[1734184944711,0.5226071,221.57,221.56,34.12440125]
[1734184944915,0.5226071,221.57,221.56,13.99891125]
[1734184946653,0.5226071,221.57,221.56,14.12440125]
[1734184947926,0.5226071,221.57,221.56,37.90128525]
[1734184950361,0.84587264,221.74,221.57,0.37647]
[1734184950672,0.84566362,221.76,221.65,13.43065348]
[1734184950971,0.84566362,221.76,221.65,0.12549]
[1734184951532,0.84566362,221.76,221.59,0.12549]
[1734184951533,0.84566362,221.76,221.66,0.44242427]
[1734184951766,23.776884,221.73,221.59,20.44253389]
[1734184951967,0.8458302,221.72,221.59,0.44253389]
[1734184952138,0.8458302,221.72,221.59,20.44253389]
[1734184952342,0.8458302,221.72,221.6,0.12549]
[1734184952561,20.0,221.74,221.62,0.12549]
[1734184952562,0.84576455,221.73,221.62,0.12549]
[1734184952767,0.84576455,221.73,221.63,0.4425748]
[1734184954047,0.84576455,221.73,221.61,0.25098]
[1734184954258,0.84576455,221.73,221.62,0.44265183]
[1734184955259,20.0,221.74,221.63,0.12549]
[1734184955573,20.0,221.74,221.62,13.87330531]
[1734184955574,20.0,221.74,221.64,0.44250948]
[1734184955776,20.0,221.74,221.65,0.12549]
[1734184955943,0.84574985,221.76,221.66,0.44246082]
[1734184956460,0.84574985,221.76,221.64,0.25098]
[1734184956839,0.84574985,221.76,221.63,0.44244389]
[1734184957460,20.0,221.74,221.63,0.44244389]
[1734184958465,0.8457051,221.73,221.63,0.44244389]
[1734184959143,20.0,221.74,221.63,0.44244389]
[1734184959569,20.0,221.74,221.64,0.25098]
[1734184959862,0.84570268,221.76,221.65,0.44244921]
[1734184960868,0.84570268,221.76,221.65,20.44244921]
[1734184961050,8.1444,221.77,221.66,0.25098]
[1734184961252,0.84557819,221.76,221.66,0.25098]
[1734184961551,8.1444,221.77,221.66,0.25098]
[1734184962161,8.1444,221.77,221.67,0.44232019]
[1734184964747,8.1444,221.77,221.68,0.12549]
[1734184964946,8.1444,221.77,221.69,0.44217529]
[1734184967248,0.5226071,221.79,221.71,13.43065348]
[1734184967462,0.5226071,221.79,221.72,0.44209602]
[1734184968168,0.5226071,221.79,221.7,0.44201019]
[1734184968672,0.5226071,221.79,221.69,0.25098]
[1734184969569,0.5226071,221.79,221.68,20.0]
[1734184969873,0.84555342,221.78,221.68,20.0]
[1734184970168,0.84555342,221.78,221.68,20.44225147]
[1734184971161,0.84555342,221.78,221.68,29.03133901]
[1734184971369,0.84555299,221.78,221.68,29.03133901]
[1734184971878,0.5226071,221.79,221.69,8.71457754]
[1734184972061,0.5226071,221.79,221.7,0.44207698]
[1734184972954,0.5226071,221.79,221.68,28.58908754]
[1734184974275,0.5226071,221.79,221.69,0.44216514]
[1734184974463,0.5226071,221.79,221.69,9.03125268]
[1734184974664,0.5226071,221.79,221.7,0.25098]
[1734184975053,0.5226071,221.79,221.72,8.58908754]
[1734184975365,0.5226071,221.79,221.73,0.44191296]
[1734184976850,0.5226071,221.79,221.71,0.4419367]
[1734184977775,0.5226071,221.79,221.7,20.0]
[1734184978077,0.5226071,221.79,221.69,0.44194552]
[1734184978983,0.5226071,221.79,221.68,19.03103306]
[1734184979167,0.5226071,221.79,221.68,8.58908754]
[1734184979882,0.5226071,221.79,221.67,8.58908754]
[1734184980473,20.0,221.78,221.65,8.58908754]
[1734184980700,0.84562808,221.77,221.65,8.58908754]
[1734184981016,0.84562808,221.77,221.66,8.58908754]
[1734184981282,0.84562808,221.77,221.67,8.58908754]
[1734184981688,0.84562808,221.77,221.61,1.6118]
[1734184981889,0.84562808,221.77,221.68,8.58908754]
[1734184983293,20.0,221.78,221.68,8.58908754]
[1734184983791,0.8455525,221.77,221.66,8.58908754]
[1734184983978,23.776884,221.76,221.61,1.6118]
[1734184984179,0.84571137,221.75,221.63,8.71457754]
[1734184984385,0.84571137,221.75,221.62,20.0]
[1734184984588,0.84571137,221.75,221.62,28.58908754]
[1734184985092,0.84571137,221.75,221.63,8.71457754]
[1734184985788,0.84571137,221.75,221.64,8.58908754]
[1734184986569,0.84571137,221.75,221.63,8.71457754]
[1734184986771,31.792584,221.74,221.61,28.58908754]
[1734184986985,23.776884,221.72,221.61,28.58908754]
[1734184987187,0.84586277,221.71,221.61,28.58908754]
[1734184988600,0.84586277,221.71,221.62,8.58908754]
[1734184989209,8.0157,221.74,221.63,8.58908754]
[1734184989528,0.84575145,221.73,221.63,8.58908754]
[1734184990529,0.84575145,221.73,221.62,8.71457754]
[1734184990829,0.84575145,221.73,221.61,20.0]
[1734184991075,0.84575145,221.73,221.62,8.58908754]
[1734184991401,0.84575145,221.73,221.63,8.58908754]
[1734184991599,0.84575145,221.73,221.61,28.58908754]
[1734184991799,0.84575145,221.73,221.61,20.0]
[1734184992030,0.84575145,221.73,221.56,18.10160606]
[1734184992031,23.776884,221.72,221.55,1.6118]
[1734184992236,20.0,221.69,221.56,8.58908754]
[1734184992434,0.84597816,221.68,221.57,8.58908754]
[1734184995957,0.84597816,221.68,221.56,8.71457754]
[1734184996122,0.84597816,221.68,221.56,0.12549]
[1734184996324,7.7384,221.67,221.54,8.58908754]
[1734184996522,0.84605798,221.66,221.54,8.58908754]
[1734184997042,0.84605798,221.66,221.55,0.12549]
[1734184997645,0.84605798,221.66,221.53,8.58908754]
[1734184997952,0.84605798,221.66,221.54,0.12549]
[1734184998518,23.776884,221.65,221.51,8.58908754]
[1734184998760,0.8461517,221.64,221.52,0.25098]
[1734184999048,0.8461517,221.64,221.52,8.84006754]
[1734184999414,0.8461517,221.64,221.53,8.58908754]
[1734185000058,20.0,221.62,221.49,1.5261]
[1734185000257,0.84621648,221.61,221.51,8.58908754]
[1734185000416,20.0,221.62,221.5,8.84006754]
[1734185000617,20.0,221.62,221.44,26.67057235]
[1734185000618,0.84622339,221.61,221.48,8.58908754]
[1734185001057,0.84622339,221.61,221.49,0.12549]
[1734185001354,0.84622339,221.61,221.48,8.58908754]
[1734185002146,0.84622339,221.61,221.49,0.12549]
[1734185002372,23.776884,221.6,221.48,8.58908754]
[1734185002555,7.7384,221.58,221.47,0.25098]
[1734185002865,7.7384,221.58,221.47,8.84006754]
[1734185003075,7.7384,221.58,221.49,8.58908754]
[1734185003366,7.7384,221.58,221.51,8.58908754]
[1734185003569,7.7384,221.63,221.55,8.58908754]
[1734185003741,7.7384,221.63,221.57,8.58908754]
[1734185004762,7.7384,221.63,221.56,8.58908754]
[1734185005856,7.7384,221.63,221.54,8.58908754]
[1734185006240,0.84609255,221.62,221.53,8.58908754]
[1734185006473,7.7384,221.63,221.53,8.58908754]
[1734185006636,7.7384,221.63,221.53,0.12549]
[1734185006637,0.84611831,221.62,221.53,0.12549]
[1734185006836,0.84611831,221.62,221.48,23.776884]
[1734185007060,0.84611831,221.62,221.52,8.58908754]
[1734185007254,7.7384,221.63,221.54,8.58908754]
[1734185007441,7.7384,221.63,221.55,8.58908754]
[1734185009173,7.7384,221.63,221.54,8.58908754]
[1734185009337,7.7384,221.63,221.53,8.58908754]
[1734185009544,7.7384,221.63,221.54,8.58908754]
[1734185010087,7.7384,221.63,221.53,8.58908754]
[1734185010591,0.84610322,221.62,221.5,8.58908754]
[1734185010792,0.84610322,221.62,221.5,0.12549]
[1734185010967,0.84610322,221.62,221.5,0.25098]
[1734185012684,0.84610322,221.62,221.44,11.01001742]
[1734185012870,23.776884,221.59,221.44,8.58908754]
[1734185013067,23.776884,221.57,221.43,10.11518754]
[1734185013393,8.58482331,221.56,221.44,0.12549]
[1734185013893,8.58482331,221.56,221.43,10.11518754]
[1734185014261,8.58482331,221.56,221.42,8.58908754]
[1734185014583,23.776884,221.55,221.42,8.58908754]
[1734185014783,0.84650405,221.54,221.45,20.0]
[1734185015290,8.58490371,221.56,221.45,8.71457754]
[1734185016297,7.7384,221.56,221.45,8.71457754]
[1734185016598,0.84637959,221.55,221.45,8.71457754]
[1734185017674,0.84637959,221.55,221.43,8.58908754]
[1734185017876,0.84637959,221.55,221.45,20.0]
[1734185018478,0.84637959,221.55,221.42,8.71457754]
[1734185018682,0.84637959,221.55,221.43,0.12549]
[1734185020700,0.84637959,221.55,221.42,0.25098]
[1734185021013,23.776884,221.54,221.41,20.0]
[1734185021180,0.84658988,221.53,221.41,20.0]
[1734185022419,20.0,221.51,221.39,8.58908754]
[1734185022583,0.84660633,221.5,221.39,8.71457754]
[1734185023877,0.84660633,221.5,221.41,8.58908754]
[1734185024078,7.7384,221.56,221.46,8.58908754]
[1734185025401,0.84637069,221.55,221.46,8.58908754]
[1734185025704,0.84637069,221.55,221.45,8.58908754]
[1734185026507,0.84637069,221.55,221.45,0.12549]
[1734185027030,7.7384,221.56,221.46,0.12549]
[1734185029089,7.7384,221.56,221.5,0.12549]
[1734185029297,7.7384,221.56,221.5,8.71457754]
[1734185029523,7.7204,221.64,221.5,8.71457754]
[1734185029718,0.84622508,221.63,221.5,8.71457754]
[1734185030599,20.0,221.61,221.5,8.71457754]
[1734185030791,0.84623636,221.6,221.49,8.58908754]
[1734185031018,0.84623636,221.6,221.48,0.25098]
[1734185031730,0.84623636,221.6,221.47,0.12549]
[1734185032498,0.84623636,221.6,221.48,0.12549]
[1734185032807,0.84623636,221.6,221.48,8.58908754]
[1734185033010,0.84623636,221.6,221.49,8.58908754]
[1734185033814,0.84623636,221.6,221.5,8.58908754]
[1734185034028,0.84623636,221.6,221.5,0.12549]
[1734185036152,0.84623636,221.6,221.47,8.71457754]
[1734185036635,0.84623636,221.6,221.48,8.71457754]
[1734185037213,0.84623636,221.6,221.47,8.58908754]
[1734185037633,0.84623636,221.6,221.47,0.12549]
[1734185038717,0.84623636,221.6,221.5,8.58908754]
[1734185038913,7.7204,221.64,221.53,8.58908754]
[1734185038914,0.8463702,221.63,221.53,8.58908754]
[1734185039108,7.7204,221.64,221.54,8.58908754]
[1734185039302,0.84606034,221.63,221.54,8.58908754]
[1734185039524,7.7204,221.64,221.54,8.58908754]
[1734185039745,0.84608041,221.63,221.54,0.12549]
[1734185039906,0.84608041,221.63,221.53,8.58908754]
[1734185040641,0.84608041,221.63,221.47,0.12549]
[1734185040642,0.84608041,221.63,221.54,8.58908754]
[1734185040812,7.7204,221.64,221.54,8.58908754]
[1734185041652,7.7204,221.64,221.53,8.58908754]
[1734185042147,0.84608197,221.63,221.52,8.58908754]
[1734185042306,0.84608197,221.63,221.52,0.12549]
[1734185042717,0.84608197,221.63,221.53,8.58908754]
[1734185042943,7.7204,221.64,221.54,0.12549]
[1734185043309,7.7204,221.64,221.54,8.71457754]
[1734185043509,7.7204,221.64,221.54,0.12549]
[1734185043944,0.84608614,221.63,221.54,0.12549]
[1734185044149,7.7204,221.64,221.54,0.12549]
[1734185045313,0.84608426,221.63,221.52,8.84006754]
[1734185046034,0.84608426,221.63,221.54,0.12549]
[1734185047336,0.84608426,221.63,221.52,8.71457754]
[1734185048118,0.84608426,221.63,221.52,0.12549]
[1734185048321,0.84608426,221.63,221.47,28.58908754]
[1734185048533,23.776884,221.62,221.44,2.6986734]
[1734185048749,0.84635701,221.61,221.46,0.12549]
[1734185048919,0.84635701,221.61,221.47,0.12549]
[1734185049630,20.84635701,221.61,221.47,8.58908754]
[1734185049830,20.84635701,221.61,221.5,0.12549]
[1734185050215,20.84635701,221.61,221.46,8.58908754]
[1734185050416,1.6039,221.56,221.44,8.58908754]
[1734185050622,0.84641877,221.55,221.44,0.25098]
[1734185050839,0.84641877,221.55,221.44,8.71457754]
[1734185051239,0.84641877,221.55,221.45,0.12549]
[1734185051545,0.84641877,221.55,221.43,0.12549]
[1734185052260,0.84641877,221.55,221.43,0.25098]
[1734185052743,0.84641877,221.55,221.41,8.58908754]
[1734185052935,0.84641877,221.55,221.42,0.12549]
[1734185054441,6.012,221.54,221.42,0.12549]
[1734185054627,0.84657849,221.53,221.42,0.12549]
[1734185056035,0.8464802,221.53,221.44,8.58908754]
[1734185056243,0.8464802,221.53,221.43,8.71457754]
[1734185056417,6.85848451,221.54,221.44,8.58908754]
[1734185056618,6.012,221.54,221.45,8.58908754]
[1734185057139,6.012,221.54,221.47,8.58908754]
[1734185057517,6.012,221.54,221.46,8.58908754]
[1734185057728,6.012,221.54,221.45,8.58908754]
[1734185057941,6.012,221.54,221.45,0.12549]
[1734185058515,6.012,221.54,221.46,8.71457754]
[1734185061120,6.012,221.54,221.44,0.12549]
[1734185061320,6.012,221.54,221.46,8.58908754]
[1734185064143,6.012,221.54,221.46,6.39082754]
[1734185064354,15.05402717,221.67,221.56,20.12549]
[1734185064649,0.84577688,221.72,221.58,32.49146154]
[1734185064854,0.84577688,221.72,221.59,20.0]
[1734185065551,20.84577688,221.72,221.59,20.0]
[1734185065733,20.84577688,221.72,221.6,0.12549]
[1734185066752,20.84577688,221.72,221.6,8.71457754]
[1734185066948,20.84577688,221.72,221.61,8.58908754]
[1734185067155,20.84577688,221.72,221.6,13.55550339]
[1734185072468,23.776884,221.71,221.58,13.43001339]
[1734185072671,1.5369,221.69,221.56,1.6337]
[1734185072844,20.84604827,221.68,221.55,13.43001339]
[1734185073174,6.0264,221.66,221.54,13.43001339]
[1734185073361,0.8461075,221.65,221.54,13.43001339]
[1734185073564,0.8461075,221.65,221.55,13.43001339]
[1734185075059,0.8461075,221.65,221.56,13.43001339]
[1734185075258,0.84608394,221.66,221.58,13.43001339]
[1734185075462,20.0,221.68,221.6,13.43001339]
[1734185075646,20.84592287,221.68,221.6,13.43001339]
[1734185076349,20.0,221.68,221.6,13.43001339]
[1734185077364,0.8459018,221.67,221.58,13.43001339]
[1734185078746,0.8459018,221.67,221.56,13.43001339]
[1734185078946,0.8459018,221.67,221.55,13.43001339]
[1734185079558,23.776884,221.66,221.55,13.43001339]
[1734185079760,0.84614857,221.65,221.54,13.43001339]
[1734185080365,0.84614857,221.65,221.55,13.43001339]
[1734185080559,0.84614857,221.65,221.56,13.43001339]
[1734185080964,0.84614857,221.65,221.57,13.43001339]
[1734185081206,0.84604562,221.67,221.57,13.43001339]
[1734185081469,0.84604562,221.67,221.56,13.43001339]
[1734185083563,0.8460552,221.68,221.6,13.43001339]
[1734185083756,2.38279003,221.69,221.61,13.43001339]
[1734185084764,1.5369,221.69,221.62,13.43001339]
[1734185085351,6.0264,221.71,221.63,13.43001339]
[1734185085871,0.84581242,221.7,221.63,13.43001339]
[1734185086042,6.0264,221.71,221.62,13.43001339]
[1734185086651,0.84581596,221.7,221.62,13.43001339]
[1734185087059,6.0264,221.71,221.62,13.43001339]
[1734185088076,0.84580287,221.7,221.62,13.43001339]
[1734185088466,6.0264,221.71,221.62,13.43001339]
[1734185088662,0.84580931,221.7,221.62,13.43001339]
[1734185089151,0.84580931,221.7,221.62,8.59400438]
[1734185089355,0.84580931,221.7,221.61,8.59400438]
[1734185090851,0.84580931,221.7,221.59,20.0]
[1734185091364,0.84580931,221.7,221.61,8.59400438]